bitfinex-derivatives/quotes_SOLF0:USTF0_20251208
["timestamp","ask_amount","ask_price","bid_price","bid_amount"]
[1765164396185,3.18777598,134.43,134.4,0.05384539]
[1765164399288,3.18777598,134.43,134.4,3.21384539]
[1765164405492,0.04777598,134.43,134.4,3.21384539]
[1765164406499,0.04777598,134.43,134.41,3.16]
[1765164406692,3.18777598,134.43,134.4,0.05384539]
[1765164406996,3.18777598,134.43,134.4,3.21384539]
[1765164410598,0.04777598,134.43,134.4,3.21384539]
[1765164410801,3.12777598,134.43,134.4,3.21384539]
[1765164418207,0.04777598,134.43,134.4,6.74954539]
[1765164418416,0.04777598,134.43,134.41,3.08]
[1765164419006,3.29,134.42,134.4,9.82954539]
[1765164419513,0.04777598,134.43,134.41,3.08]
[1765164419715,3.33777598,134.43,134.41,3.08]
[1765164420715,3.33777598,134.43,134.4,9.82954539]
[1765164422020,3.33777598,134.43,134.4,3.13384539]
[1765164422211,3.33777598,134.43,134.4,0.05384539]
[1765164422918,3.33777598,134.43,134.4,3.13384539]
[1765164423421,3.33777598,134.43,134.4,0.05384539]
[1765164423719,3.29,134.41,134.4,0.05384539]
[1765164424020,3.29,134.42,134.4,0.05384539]
[1765164424922,3.29,134.42,134.4,3.13384539]
[1765164432724,0.04777598,134.43,134.4,3.13384539]
[1765164433032,0.04777598,134.43,134.41,66.7]
[1765164433225,0.04777598,134.43,134.42,3.08]
[1765164435027,3.29,134.46,134.43,6.6942]
[1765164435231,13.6292081,134.49,134.44,3.08]
[1765164435418,9.02841363,134.48,134.44,3.08]
[1765164435619,5.73841363,134.47,134.46,3.08]
[1765164438330,5.73841363,134.47,134.45,63.67536711]
[1765164438530,3.27,134.47,134.45,66.89536711]
[1765164438733,0.05079906,134.48,134.45,66.89536711]
[1765164438933,5.7378309,134.47,134.45,66.89536711]
[1765164439133,3.32079906,134.48,134.46,3.22]
[1765164439333,5.73672179,134.47,134.46,3.22]
[1765164440028,3.32079906,134.48,134.46,3.22]
[1765164440228,3.27,134.47,134.45,66.89536711]
[1765164440537,3.27,134.47,134.45,63.67536711]
[1765164441332,3.27,134.47,134.45,66.89536711]
[1765164441835,3.32079906,134.48,134.46,3.22]
[1765164442932,3.32079906,134.48,134.45,65.65619081]
[1765164443133,3.32079906,134.48,134.45,68.87619081]
[1765164446032,3.32079906,134.48,134.46,3.22]
[1765164453243,0.05079906,134.48,134.47,5.2008237]
[1765164456554,3.32079906,134.48,134.47,1.9808237]
[1765164456942,0.05079906,134.48,134.47,5.2008237]
[1765164457949,5.69823071,134.52,134.47,5.2008237]
[1765164458144,3.27,134.56,134.53,3.22]
[1765164458346,5.69471299,134.55,134.54,1.9808237]
[1765164458542,3.27,134.56,134.54,1.9808237]
[1765164459147,3.32219545,134.56,134.54,5.25234367]
[1765164459350,0.05219545,134.56,134.54,5.25234367]
[1765164460849,0.05219545,134.56,134.55,3.22]
[1765164461056,3.7162501,134.57,134.56,5.2008237]
[1765164469473,3.34,134.62,134.57,3.27]
[1765164469649,3.34,134.62,134.59,5.2508237]
[1765164471372,10.0251,134.62,134.58,0.0478073]
[1765164471863,3.34,134.61,134.58,0.0478073]
[1765164473660,10.0256,134.61,134.58,0.0478073]
[1765164473861,3.34,134.6,134.58,0.0478073]
[1765164474765,3.34,134.58,134.53,5.2508237]
[1765164475772,3.34,134.56,134.54,0.05071985]
[1765164481671,0.04763357,134.57,134.56,3.27]
[1765164483376,3.38763357,134.57,134.55,5.2508237]
[1765164483575,0.04763357,134.57,134.56,3.27]
[1765164484975,0.04763357,134.57,134.56,66.81]
[1765164491080,3.38763357,134.57,134.56,63.54]
[1765164491280,0.04763357,134.57,134.56,66.81]
[1765164493983,3.32763357,134.57,134.56,63.54]
[1765164494879,0.04763357,134.57,134.56,63.54]
[1765164495184,0.04763357,134.57,134.56,66.68]
[1765164498280,3.13,134.61,134.57,3.36]
[1765164498482,5.67424607,134.6,134.59,1.9808237]
[1765164498990,8.80424607,134.6,134.59,1.9808237]
[1765164501294,5.67424607,134.6,134.59,1.9808237]
[1765164503194,5.67424607,134.6,134.59,5.3408237]
[1765164503486,3.13,134.62,134.6,3.36]
[1765164503798,5.69187457,134.61,134.6,3.36]
[1765164505000,8.82187457,134.61,134.59,6.44806869]
[1765164505182,5.69187457,134.6,134.59,6.44806869]
[1765164505585,3.13,134.59,134.58,0.04861629]
[1765164505785,6.9377081,134.63,134.58,0.04861629]
[1765164505982,3.13,134.61,134.58,3.40861629]
[1765164506185,8.82416985,134.6,134.58,3.40861629]
[1765164506392,3.13,134.6,134.58,3.40861629]
[1765164507092,3.13,134.6,134.58,0.04861629]
[1765164508291,3.13,134.6,134.58,3.40861629]
[1765164508491,3.13,134.62,134.6,3.36]
[1765164508685,5.69318031,134.61,134.6,3.36]
[1765164511998,3.13,134.63,134.6,3.36]
[1765164512189,5.66870429,134.62,134.6,3.36]
[1765164512388,3.13,134.63,134.6,3.36]
[1765164512588,5.6680239,134.62,134.6,3.36]
[1765164512789,16.7513081,134.65,134.6,3.41615914]
[1765164513001,8.7980239,134.64,134.6,3.41615914]
[1765164513201,5.6680239,134.63,134.6,3.41615914]
[1765164513397,5.6680239,134.62,134.6,3.41615914]
[1765164513602,3.13,134.64,134.6,3.41615914]
[1765164513805,3.13,134.62,134.6,3.41615914]
[1765164515105,3.13,134.62,134.6,0.05615914]
[1765164516102,8.79640595,134.61,134.6,0.05615914]
[1765164518105,8.79640595,134.61,134.57,69.98806869]
[1765164518106,3.13,134.59,134.57,63.54]
[1765164519203,3.1803227,134.59,134.57,63.59420836]
[1765164524713,3.1803227,134.59,134.57,66.95420836]
[1765164525122,3.1803227,134.59,134.57,63.59420836]
[1765164525720,8.80136465,134.58,134.57,63.59420836]
[1765164526214,8.80136465,134.58,134.57,0.05420836]
[1765164526922,3.13,134.56,134.53,3.36]
[1765164527818,3.18044855,134.56,134.53,3.41398814]
[1765164529215,3.17,134.55,134.53,3.41398814]
[1765164530911,6.73844855,134.56,134.53,3.41398814]
[1765164531319,9.90844855,134.56,134.53,3.41398814]
[1765164532022,3.17,134.55,134.53,3.41398814]
[1765164535226,3.17,134.55,134.53,0.05398814]
[1765164539424,3.38,134.54,134.53,0.05398814]
[1765164539729,3.38,134.53,134.51,63.52]
[1765164540725,3.38,134.52,134.51,0.04922484]
[1765164540917,3.38,134.52,134.48,3.24]
[1765164542023,3.38,134.52,134.49,0.05066067]
[1765164542620,6.6901,134.52,134.49,0.05066067]
[1765164542930,3.38,134.51,134.49,0.05066067]
[1765164544719,3.38,134.51,134.49,3.29066067]
[1765164544922,3.43657346,134.53,134.49,3.29066067]
[1765164546533,3.43657346,134.53,134.5,3.24]
[1765164552037,3.38,134.52,134.49,0.05066067]
[1765164553450,10.0701,134.52,134.49,0.05066067]
[1765164553741,3.38,134.51,134.49,0.05066067]
[1765164554239,10.0706,134.51,134.49,0.05066067]
[1765164554439,3.38,134.5,134.49,0.05066067]
[1765164555626,3.38,134.49,134.47,63.54]
[1765164556829,3.43617567,134.49,134.47,63.590065]
[1765164557548,3.38,134.48,134.47,63.590065]
[1765164558041,9.94767567,134.49,134.47,66.970065]
[1765164558440,9.94767567,134.49,134.47,63.590065]
[1765164559537,3.2,134.48,134.47,0.050065]
[1765164561242,3.2,134.47,134.44,3.38]
[1765164561944,3.2,134.46,134.41,66.64806869]
[1765164562246,3.2,134.44,134.42,3.43426717]
[1765164562448,3.25684154,134.45,134.42,3.43426717]
[1765164564534,0.05684154,134.45,134.42,3.43426717]
[1765164564738,3.25684154,134.45,134.44,1.98138923]
[1765164569244,0.05684154,134.45,134.44,5.36138923]
[1765164575349,9.8915,134.49,134.45,3.38]
[1765164575549,3.2,134.48,134.47,1.98138923]
[1765164576058,3.2,134.48,134.45,5.36138923]
[1765164576458,3.25304127,134.48,134.45,5.40921443]
[1765164576660,3.25304127,134.48,134.46,3.38]
[1765164577163,3.25304127,134.48,134.45,2.02921443]
[1765164577360,3.25304127,134.48,134.45,5.40921443]
[1765164582172,3.2,134.47,134.45,2.02921443]
[1765164582667,3.2,134.47,134.45,5.40921443]
[1765164588472,3.2,134.47,134.45,2.02921443]
[1765164590676,3.18,134.46,134.45,2.02921443]
[1765164592466,0.05304127,134.48,134.45,5.32921443]
[1765164592670,3.23304127,134.48,134.45,0.0478252]
[1765164592874,3.18,134.47,134.45,0.0478252]
[1765164593172,3.18,134.44,134.41,3.3]
[1765164594168,3.23668167,134.44,134.41,3.35351526]
[1765164594575,3.18,134.43,134.41,3.35351526]
[1765164597189,9.8748,134.43,134.41,0.05351526]
[1765164597483,3.18,134.42,134.41,0.05351526]
[1765164601690,3.14,134.38,134.35,3.16]
[1765164602792,3.18768241,134.38,134.35,3.21090997]
[1765164603490,3.14,134.37,134.35,0.05090997]
[1765164604000,3.14,134.36,134.35,0.05090997]
[1765164604999,3.18768241,134.38,134.36,3.16]
[1765164607096,3.18768241,134.38,134.35,5.1922992]
[1765164607289,3.14,134.37,134.35,3.21090997]
[1765164607695,3.14,134.36,134.35,0.05090997]
[1765164608288,3.14,134.35,134.31,3.16]
[1765164609403,0.04918797,134.34,134.32,3.2128233]
[1765164609986,0.04918797,134.34,134.32,5.19421253]
[1765164610190,0.04918797,134.34,134.33,3.16]
[1765164611195,0.04918797,134.34,134.32,3.2128233]
[1765164622304,0.04918797,134.34,134.32,9.9125233]
[1765164622496,0.04918797,134.34,134.33,5.19138923]
[1765164624396,104.1477,134.42,134.38,3.21]
[1765164624397,3.13,134.42,134.38,3.21]
[1765164625297,0.05034746,134.41,134.39,3.25930877]
[1765164625502,5.16173669,134.41,134.39,0.04930877]
[1765164625703,3.13,134.4,134.39,0.04930877]
[1765164626308,3.13,134.39,134.35,5.19138923]
[1765164626605,3.13,134.38,134.31,68.81138923]
[1765164626807,3.13,134.36,134.32,3.21]
[1765164627307,3.17842274,134.35,134.33,3.25835164]
[1765164627508,0.04842274,134.35,134.33,3.25835164]
[1765164628500,3.17842274,134.35,134.33,0.04835164]
[1765164630501,9.87712274,134.35,134.33,0.04835164]
[1765164630701,3.13,134.34,134.33,0.04835164]
[1765164631697,6.74712274,134.35,134.33,3.25835164]
[1765164631902,0.04842274,134.35,134.33,3.25835164]
[1765164632405,3.17842274,134.35,134.33,0.04835164]
[1765164634213,3.17842274,134.35,134.33,3.25835164]
[1765164634508,0.04842274,134.35,134.33,3.25835164]
[1765164635510,6.696,134.4,134.34,3.21]
[1765164635911,3.13,134.41,134.36,3.21]
[1765164636514,3.17951532,134.4,134.37,3.26412108]
[1765164640717,0.04951532,134.4,134.38,3.10140202]
[1765164640921,0.04951532,134.4,134.39,3.21]
[1765164641823,3.17951532,134.4,134.38,3.21]
[1765164642730,3.17951532,134.4,134.37,63.67412108]
[1765164644323,3.17951532,134.4,134.37,66.88412108]
[1765164644911,3.17951532,134.4,134.37,3.26412108]
[1765164645116,8.83345927,134.39,134.37,0.05412108]
[1765164645409,3.13,134.39,134.37,0.05412108]
[1765164646617,3.13,134.38,134.37,0.05412108]
[1765164650029,8.83482203,134.38,134.37,0.05412108]
[1765164650727,3.13,134.38,134.37,0.05412108]
[1765164657633,3.39951532,134.4,134.37,3.38412108]
[1765164659132,3.39951532,134.4,134.37,0.05412108]
[1765164659431,3.35,134.38,134.37,0.05412108]
[1765164659622,9.05575914,134.38,134.37,0.05412108]
[1765164659930,3.35,134.38,134.37,0.05412108]
[1765164660825,3.35,134.38,134.32,3.33]
[1765164660826,3.35,134.37,134.32,3.33]
[1765164661822,3.11,134.35,134.33,0.05590938]
[1765164663939,0.05210195,134.36,134.33,3.38590938]
[1765164666838,0.05210195,134.36,134.33,10.08500938]
[1765164667030,0.05210195,134.36,134.34,3.33]
[1765164673048,0.05210195,134.36,134.34,10.0285]
[1765164673449,0.05210195,134.36,134.35,3.33]
[1765164674138,9.8052,134.42,134.36,3.33]
[1765164674341,3.11,134.4,134.36,3.33]
[1765164675246,0.05438397,134.39,134.37,0.04768929]
[1765164675455,3.16438397,134.39,134.37,0.04768929]
[1765164676763,0.05438397,134.39,134.37,3.37768929]
[1765164678549,0.05438397,134.39,134.38,3.3]
[1765164680059,0.05438397,134.39,134.37,3.34768929]
[1765164683566,0.05438397,134.39,134.38,3.3]
[1765164688670,0.05438397,134.39,134.38,5.28258392]
[1765164689966,3.14,134.42,134.39,3.3]
[1765164690159,118.44633132,134.46,134.37,0.04768929]
[1765164690160,3.14,134.44,134.4,5.28258392]
[1765164690360,3.14,134.42,134.4,5.28258392]
[1765164691076,3.19667114,134.42,134.4,5.33160551]
[1765164692675,3.19667114,134.42,134.4,0.04902159]
[1765164693063,8.85307816,134.41,134.4,0.04902159]
[1765164695581,3.14,134.4,134.35,72.28078392]
[1765164695868,3.14,134.38,134.35,63.6]
[1765164696074,3.14,134.38,134.33,5.28258392]
[1765164696374,3.14,134.38,134.34,3.3]
[1765164696573,3.19035541,134.37,134.35,0.05589468]
[1765164701273,9.88795541,134.37,134.35,0.05589468]
[1765164701663,3.14,134.36,134.35,0.05589468]
[1765164701869,8.853086,134.36,134.35,0.05589468]
[1765164703274,9.88795541,134.37,134.35,3.35589468]
[1765164703479,9.88795541,134.37,134.35,0.05589468]
[1765164704079,0.05035541,134.37,134.35,3.35589468]
[1765164704379,3.19035541,134.37,134.35,2.0384786]
[1765164705277,3.19035541,134.37,134.35,5.3384786]
[1765164707772,0.05035541,134.37,134.36,3.3]
[1765164711578,3.19,134.36,134.35,0.05589468]
[1765164711771,8.90247572,134.36,134.35,0.05589468]
[1765164712165,0.05035541,134.37,134.35,0.05589468]
[1765164712166,0.05035541,134.37,134.35,3.38589468]
[1765164712372,3.24035541,134.37,134.35,3.38589468]
[1765164712675,3.24035541,134.37,134.35,0.05589468]
[1765164713175,3.24035541,134.37,134.35,3.38589468]
[1765164713383,0.05035541,134.37,134.35,3.38589468]
[1765164719183,3.14035541,134.37,134.35,3.38589468]
[1765164720685,0.05035541,134.37,134.35,3.38589468]
[1765164721578,3.14035541,134.37,134.35,3.38589468]
[1765164722079,3.14035541,134.37,134.35,0.05589468]
[1765164722474,3.14035541,134.37,134.35,3.38589468]
[1765164726183,9.83795541,134.37,134.35,0.05589468]
[1765164726485,3.09,134.36,134.35,0.05589468]
[1765164726783,9.7885,134.35,134.32,3.33]
[1765164726983,3.09,134.34,134.32,3.33]
[1765164727682,9.7885,134.35,134.32,3.33]
[1765164727884,9.7885,134.35,134.32,3.3814121]
[1765164729993,3.09,134.34,134.32,3.3814121]
[1765164731384,3.09,134.34,134.32,0.0514121]
[1765164731589,3.09,134.33,134.32,0.0514121]
[1765164733186,0.04703497,134.34,134.32,3.3814121]
[1765164733389,0.04703497,134.34,134.33,5.31258392]
[1765164734090,9.787,134.38,134.34,3.33]
[1765164734290,6.697,134.38,134.36,3.33]
[1765164735190,0.04778222,134.38,134.36,3.37966624]
[1765164735794,0.04778222,134.38,134.37,5.31258392]
[1765164735998,3.09,134.43,134.38,3.33]
[1765164736194,5.72253615,134.42,134.4,3.33]
[1765164736385,3.09,134.43,134.4,3.33]
[1765164736386,5.72253615,134.41,134.4,3.33]
[1765164737390,5.72469645,134.41,134.4,3.33]
[1765164737594,0.04958391,134.42,134.4,3.33]
[1765164738887,3.24958391,134.42,134.4,3.33]
[1765164739286,3.2,134.41,134.39,2.03109157]
[1765164739687,3.2,134.41,134.39,5.32109157]
[1765164740686,9.8956,134.41,134.39,0.04850765]
[1765164740887,3.2,134.4,134.39,0.04850765]
[1765164741092,8.92129193,134.4,134.39,0.04850765]
[1765164762724,9.8964,134.39,134.36,3.29]
[1765164762930,3.2,134.38,134.36,3.29]
[1765164763727,3.2,134.38,134.36,3.34480118]
[1765164764030,3.2571369,134.38,134.36,3.34480118]
[1765164765529,0.0571369,134.38,134.36,3.34480118]
[1765164768336,3.4071369,134.38,134.36,3.34480118]
[1765164768632,3.4071369,134.38,134.36,0.05480118]
[1765164769033,3.4071369,134.38,134.36,3.13480118]
[1765164771526,0.0571369,134.38,134.36,3.13480118]
[1765164778434,0.0571369,134.38,134.37,3.21]
[1765164779441,3.08,134.43,134.38,3.21]
[1765164779640,5.71411722,134.42,134.39,3.21]
[1765164779945,3.08,134.43,134.39,3.21]
[1765164780132,5.7170213,134.42,134.39,3.21]
[1765164780338,0.05282367,134.42,134.39,3.26297801]
[1765164780640,0.05282367,134.42,134.41,3.21]
[1765164785538,0.05282367,134.42,134.39,3.26297801]
[1765164785539,3.13282367,134.42,134.39,3.26297801]
[1765164785746,3.13282367,134.42,134.39,0.05297801]
[1765164785942,6.6956,134.41,134.39,0.05297801]
[1765164786146,3.08,134.4,134.39,0.05297801]
[1765164790756,3.13282367,134.42,134.39,3.26297801]
[1765164792157,3.08,134.41,134.39,0.05297801]
[1765164805666,0.05282367,134.42,134.39,3.27297801]
[1765164810675,0.05282367,134.42,134.41,3.22]
[1765164814166,3.21282367,134.42,134.4,1.98233846]
[1765164815263,3.16,134.41,134.4,1.98233846]
[1765164818377,0.05282367,134.42,134.41,3.22]
[1765164822686,9.8531,134.46,134.41,3.22]
[1765164822889,3.16,134.44,134.43,1.98233846]
[1765164823088,3.16,134.45,134.43,1.98233846]
[1765164823785,3.20916161,134.45,134.43,2.0309022]
[1765164825392,3.20916161,134.45,134.43,0.04856374]
[1765164826688,9.90276161,134.45,134.43,0.04856374]
[1765164826890,8.85755009,134.44,134.43,0.04856374]
[1765164827195,3.16,134.43,134.39,1.98233846]
[1765164827590,3.16,134.43,134.37,68.80233846]
[1765164827793,3.16,134.43,134.38,3.22]
[1765164827992,3.24,134.41,134.39,0.0550333]
[1765164829785,3.24,134.41,134.39,3.4150333]
[1765164830385,0.04778866,134.42,134.39,5.39737176]
[1765164830589,0.04778866,134.42,134.4,3.36]
[1765164832091,0.04778866,134.42,134.41,5.34233846]
[1765164844005,0.04778866,134.42,134.4,3.36]
[1765164844006,3.28778866,134.42,134.4,3.36]
[1765164844310,3.28778866,134.42,134.39,2.03737176]
[1765164844506,3.28778866,134.42,134.39,5.39737176]
[1765164849312,3.28778866,134.42,134.39,2.03737176]
[1765164850909,3.28778866,134.42,134.39,5.21737176]
[1765164852212,9.98288866,134.42,134.39,0.0550333]
[1765164852418,8.89081813,134.41,134.39,0.0550333]
[1765164852601,3.19,134.4,134.39,0.0550333]
[1765164855818,0.04778866,134.42,134.39,5.21737176]
[1765164856014,3.23778866,134.42,134.4,3.18]
[1765164856212,3.23778866,134.42,134.39,5.21737176]
[1765164856714,3.23778866,134.42,134.39,3.2350333]
[1765164857213,3.19,134.41,134.39,3.2350333]
[1765164861416,3.19,134.41,134.39,0.0550333]
[1765164862024,0.04778866,134.42,134.4,3.23]
[1765164862224,0.04778866,134.42,134.41,5.21233846]
[1765164862421,3.23778866,134.42,134.39,5.26737176]
[1765164862621,0.04778866,134.42,134.4,3.23]
[1765164862837,0.04778866,134.42,134.41,5.21233846]
[1765164868933,0.04778866,134.42,134.41,68.77233846]
[1765164872532,3.23778866,134.42,134.41,65.54233846]
[1765164872733,0.04778866,134.42,134.41,66.79]
[1765164873033,0.04778866,134.42,134.41,63.56]
[1765164873236,3.23778866,134.42,134.41,63.56]
[1765164876327,0.04778866,134.42,134.41,63.56]
[1765164877535,0.04778866,134.42,134.41,66.79]
[1765164882237,3.23778866,134.42,134.41,63.56]
[1765164882634,3.23778866,134.42,134.39,3.2850333]
[1765164883338,0.04778866,134.42,134.39,3.2850333]
[1765164883941,3.23778866,134.42,134.39,3.2850333]
[1765164884946,0.04778866,134.42,134.39,3.2850333]
[1765164890954,0.04778866,134.42,134.41,3.16]
[1765164896745,0.04778866,134.42,134.41,66.7]
[1765164897466,3.23,134.49,134.43,3.2]
[1765164897761,5.71878424,134.48,134.46,3.2]
[1765164897963,3.23,134.49,134.46,3.2]
[1765164898161,5.71878127,134.48,134.46,3.2]
[1765164898365,0.05583355,134.48,134.46,3.2511817]
[1765164898962,3.28583355,134.48,134.46,0.0511817]
[1765164899762,8.9466587,134.47,134.46,0.0511817]
[1765164900266,3.23,134.46,134.42,3.2]
[1765164901167,3.23,134.46,134.43,0.04723167]
[1765164901364,3.23,134.46,134.43,3.24723167]
[1765164910174,3.23,134.44,134.37,3.2]
[1765164910387,3.23,134.42,134.37,3.2]
[1765164910869,9.9241,134.44,134.38,3.09737562]
[1765164911071,8.94629284,134.43,134.39,3.2]
[1765164911272,0.05415447,134.42,134.41,3.2]
[1765164915781,3.28415447,134.42,134.4,3.2563535]
[1765164916477,3.28415447,134.42,134.4,0.0563535]
[1765164916779,3.28415447,134.42,134.38,3.2]
[1765164916975,3.23,134.39,134.35,3.2]
[1765164917274,111.09284315,134.42,134.35,3.2]
[1765164917472,8.94236599,134.41,134.36,3.2]
[1765164917665,3.23,134.41,134.36,3.2]
[1765164917872,0.05675634,134.4,134.38,3.06]
[1765164921378,3.06,134.45,134.4,3.06]
[1765164921572,104.1161,134.46,134.4,3.06]
[1765164921573,3.06,134.43,134.4,3.06]
[1765164921983,107.1761,134.46,134.4,3.06]
[1765164922176,0.0500385,134.44,134.42,3.11167136]
[1765164922570,6.7442385,134.44,134.42,3.11167136]
[1765164922774,0.0500385,134.44,134.42,3.11167136]
[1765164926682,3.1100385,134.44,134.42,3.11167136]
[1765164927777,3.1100385,134.44,134.42,0.05167136]
[1765164929481,0.0500385,134.44,134.42,3.11167136]
[1765164939986,0.0500385,134.44,134.43,5.04188002]
[1765164952692,176.88658311,134.52,134.43,5.04188002]
[1765164952693,12.07992317,134.54,134.47,3.21]
[1765164952895,5.70803666,134.53,134.51,1.98188002]
[1765164953091,3.15,134.54,134.49,5.19188002]
[1765164953292,8.8525116,134.53,134.5,3.21]
[1765164953487,3.15,134.53,134.5,3.21]
[1765164953690,3.19819237,134.53,134.5,3.26531957]
[1765164955188,0.04819237,134.53,134.51,1.98188002]
[1765164955502,0.04819237,134.53,134.52,3.21]
[1765164959203,9.8371,134.58,134.52,3.21]
[1765164959400,9.8371,134.58,134.55,3.34]
[1765164960399,9.88707111,134.58,134.55,3.39312263]
[1765164961499,0.04997111,134.58,134.55,3.39312263]
[1765164961703,0.04997111,134.58,134.57,3.34]
[1765164963600,3.22,134.63,134.57,3.34]
[1765164963805,6.6838,134.65,134.61,1.98188002]
[1765164964003,3.22,134.66,134.62,3.34]
[1765164964203,9.9026,134.67,134.64,3.34]
[1765164964604,9.95370575,134.67,134.64,3.38739074]
[1765164965305,3.22,134.66,134.64,3.38739074]
[1765164965805,113.8606,134.66,134.64,0.04739074]
[1765164966006,113.8606,134.66,134.61,1.98188002]
[1765164966007,107.189,134.65,134.6,5.32188002]
[1765164966203,3.22,134.64,134.6,5.32188002]
[1765164966514,3.22,134.64,134.58,68.82188002]
[1765164966515,3.22,134.61,134.58,68.82188002]
[1765164967103,3.27559257,134.61,134.58,68.87643367]
[1765164967308,3.27559257,134.61,134.58,66.89455365]
[1765164967701,3.22,134.6,134.58,66.89455365]
[1765164967898,3.22,134.6,134.58,63.55455365]
[1765164971811,3.22,134.6,134.58,3.39455365]
[1765164973109,11.94327259,134.61,134.58,3.39455365]
[1765164974105,3.22,134.6,134.58,3.39455365]
[1765164974306,3.22,134.6,134.58,0.05455365]
[1765164975410,3.22,134.6,134.58,3.39455365]
[1765164975903,3.22,134.6,134.58,0.05455365]
[1765164976403,5.20188002,134.59,134.58,0.05455365]
[1765164978915,3.22,134.57,134.54,3.16]
[1765164979114,5.20188002,134.57,134.54,3.16]
[1765164980017,3.27522311,134.57,134.54,3.2111433]
[1765164982116,3.27522311,134.57,134.54,0.0511433]
[1765164982412,3.27522311,134.57,134.54,3.2111433]
[1765164982815,3.27522311,134.57,134.54,0.0511433]
[1765164983116,3.22,134.55,134.54,0.0511433]
[1765164983811,3.22,134.54,134.49,3.16]
[1765164984018,3.22,134.53,134.49,3.16]
[1765164984813,0.05269923,134.52,134.5,0.05265694]
[1765164985111,0.05269923,134.52,134.5,3.21265694]
[1765164986618,3.27269923,134.52,134.5,0.05265694]
[1765164991127,3.22,134.51,134.5,0.05265694]
[1765164993016,3.22,134.5,134.44,1.98188002]
[1765164993225,3.22,134.49,134.45,3.16]
[1765164994127,3.22,134.47,134.46,0.05205966]
[1765164997031,0.05122531,134.48,134.46,3.21205966]
[1765164998323,3.27122531,134.48,134.46,0.05205966]
[1765164999025,3.27122531,134.48,134.42,63.52]
[1765164999026,3.22,134.45,134.42,66.68]
[1765164999419,3.22,134.48,134.43,3.16]
[1765164999816,3.22,134.47,134.42,66.68]
[1765165000050,3.22,134.45,134.43,0.05037236]
[1765165000634,3.22,134.44,134.43,0.05037236]
[1765165002332,3.22,134.45,134.43,0.05037236]
[1765165009423,3.201832,134.46,134.43,3.14037236]
[1765165010938,3.201832,134.46,134.43,0.05037236]
[1765165012442,6.6942,134.45,134.43,0.05037236]
[1765165012639,3.15,134.44,134.43,0.05037236]
[1765165019542,9.8442,134.45,134.43,0.05037236]
[1765165020245,3.15,134.44,134.43,0.05037236]
[1765165023648,3.15,134.45,134.43,0.05037236]
[1765165025746,3.15,134.44,134.43,0.05037236]
[1765165026048,3.15,134.44,134.38,3.08]
[1765165027148,3.15,134.41,134.4,0.05603807]
[1765165036750,3.20411931,134.42,134.4,3.13603807]
[1765165037554,0.05411931,134.42,134.4,3.13603807]
[1765165038543,0.05411931,134.42,134.4,9.83233807]
[1765165038739,0.05411931,134.42,134.41,3.39]
[1765165044456,3.41411931,134.42,134.4,0.05603807]
[1765165044848,3.41411931,134.42,134.4,3.44603807]
[1765165046350,3.41411931,134.42,134.4,0.05603807]
[1765165047453,3.41411931,134.42,134.4,3.44603807]
[1765165047672,0.05411931,134.42,134.4,3.44603807]
[1765165048151,3.36,134.46,134.42,3.39]
[1765165048351,5.72866274,134.45,134.42,3.39]
[1765165048552,3.36,134.48,134.44,3.39]
[1765165048755,5.72799384,134.47,134.44,3.39]
[1765165048955,3.36,134.48,134.44,3.39]
[1765165049149,5.77510154,134.47,134.45,0.04825259]
[1765165049351,10.27270826,134.53,134.46,3.39]
[1765165049659,9.08512433,134.52,134.5,3.39]
[1765165049858,5.72512433,134.51,134.5,3.39]
[1765165050251,3.36,134.52,134.5,3.39]
[1765165050660,3.40964369,134.52,134.5,0.05689245]
[1765165053258,3.36,134.51,134.45,3.09585065]
[1765165053760,3.36,134.51,134.45,6.48585065]
[1765165054158,3.36,134.51,134.47,0.0502654]
[1765165054663,3.36,134.5,134.47,0.0502654]
[1765165057265,10.0518,134.5,134.47,0.0502654]
[1765165057462,3.36,134.49,134.47,0.0502654]